Cogmind - Beta 10.2 @@@ ROGUE MODE // 2021.05.12 @ 23:29:36 Player: Cookedpoo Result: Self-destructed Performance ------------- Evolutions (4) 2000 Regions Visited (16) 3200 Robots Destroyed (33) 165 Value Destroyed (617) 617 Prototype IDs (46) 920 Alien Tech Used (0) 0 Bonus (1557) 1557 TOTAL SCORE: 8459 Bonus ------- Follower Combat Kills 752 Aligned with FarCom 300 Met Data Miner 300 Met Imprinter 300 Friendly Fire -95 Cogmind --------- Core Integrity 813/850 Matter 280/300 Energy 154/310 System Corruption 0% Temperature Cool (0) Movement Flying (32) Location -6/Zion Parts ------- > --- POWER (1) -------- Fission Core > --- PROPULSION (2) --- Improved Cesium-ion Thruster Improved Cesium-ion Thruster > --- UTILITY (10) ----- Medium Storage Unit Advanced Weight Redist. System Advanced Weight Redist. System Enhanced Optical Array Experimental Sensor Array Improved Signal Interpreter Makeshift Terrain Scanner Advanced Terrain Scan Processor Makeshift System Shield PSU Rigger > --- WEAPON (2) ------- Power Maul > --- INVENTORY (8) ---- Combat Drone Bay (2/2) Combat Drone Bay (2/2) Dirty Bomb Trap Dirty Bomb Trap Dirty Bomb Trap Fire Trap Peak State ------------ > --- POWER ------------ Fission Core > --- PROPULSION ------- Improved Cesium-ion Thruster Improved Cesium-ion Thruster > --- UTILITY ---------- Medium Storage Unit Advanced Weight Redist. System Enhanced Optical Array Improved Signal Interpreter Advanced Terrain Scan Processor Makeshift System Shield Combat Drone Bay Combat Drone Bay > --- WEAPON ----------- Power Maul > --- INVENTORY -------- Experimental Sensor Array PSU Rigger Dirty Bomb Trap Dirty Bomb Trap Dirty Bomb Trap Fire Trap [Rating: 68] Favorites ----------- Power Fission Core Engine Light Ion Engine Power Core Fission Core Reactor Antimatter Reactor Propulsion Improved Cesium-ion Thruster Flight Unit Improved Cesium-ion Thruster Utility Improved Signal Interpreter Device Advanced Weight Redist. System Storage Medium Storage Unit Processor Improved Signal Interpreter Hackware Makeshift System Shield Protection Improved Light Armor Plating Weapon Power Maul Energy Gun EM Pulse Gun Energy Cannon Beam Cannon Ballistic Gun Enhanced Autogun Ballistic Cannon Flak Cannon Launcher Advanced EMP Blaster Impact Weapon Power Maul Slashing Weapon Axe Build | -11 -10 -10 -10 -9 -8 -7 -7 -7 -7 -7 -7 -6 -6 -6 -6 -6 ------- Run | Scr Mat Min Exi Min Mat Fac Was Fac Low Low Dat Pro Fac Low Low Zio Slots Evolved 8 | . . . . . 4 2 . . . . . . 2 . . . Power . | . . . . . . . . . . . . . . . . . Propulsion . | . . . . . . . . . . . . . . . . . Utility 8 | . . . . . 4 2 . . . . . . 2 . . . Weapon . | . . . . . . . . . . . . . . . . . Parts Attached 98 | 1 2 . . 14 21 22 . 6 5 . . 1 14 7 2 3 Power 6 | . . . . 1 . 2 . . . . . . 3 . . . Engine 2 | . . . . 1 . 1 . . . . . . . . . . Core 3 | . . . . . . 1 . . . . . . 2 . . . Reactor 1 | . . . . . . . . . . . . . 1 . . . Propulsion 8 | . . . . 5 . 2 . 1 . . . . . . . . Treads . | . . . . . . . . . . . . . . . . . Leg . | . . . . . . . . . . . . . . . . . Wheel . | . . . . . . . . . . . . . . . . . Hover . | . . . . . . . . . . . . . . . . . Flight 8 | . . . . 5 . 2 . 1 . . . . . . . . Utility 56 | . 2 . . 2 8 13 . 5 3 . . . 11 7 2 3 Device 40 | . 1 . . 2 4 8 . 4 3 . . . 8 6 2 2 Storage 3 | . . . . . . . . 1 . . . . 2 . . . Processor 9 | . . . . . 3 5 . . . . . . 1 . . . Hackware 2 | . 1 . . . . . . . . . . . . 1 . . Protection 2 | . . . . . 1 . . . . . . . . . . 1 Artifact . | . . . . . . . . . . . . . . . . . Weapon 28 | 1 . . . 6 13 5 . . 2 . . 1 . . . . Energy Gun 5 | 1 . . . . 2 2 . . . . . . . . . . Energy Cannon 2 | . . . . 2 . . . . . . . . . . . . Ballistic Gun 5 | . . . . 1 4 . . . . . . . . . . . Ballistic Cannon 7 | . . . . 3 4 . . . . . . . . . . . Launcher 4 | . . . . . 3 . . . . . . 1 . . . . Special Weapon . | . . . . . . . . . . . . . . . . . Impact Weapon 4 | . . . . . . 2 . . 2 . . . . . . . Slashing Weapon 1 | . . . . . . 1 . . . . . . . . . . Piercing Weapon . | . . . . . . . . . . . . . . . . . Special Melee Weapon . | . . . . . . . . . . . . . . . . . Unidentified Prototypes 5 | . . . . 1 2 1 . . . . . . 1 . . . Parts Lost 7 | . . . . 6 . . . . . . . . 1 . . . Power 1 | . . . . 1 . . . . . . . . . . . . Propulsion 1 | . . . . 1 . . . . . . . . . . . . Utility 3 | . . . . 2 . . . . . . . . 1 . . . Weapon 2 | . . . . 2 . . . . . . . . . . . . Highest Loss Streak 4 | . . . . 4 . . . . . . . . 1 . . . Average Slot Usage (%) 68 | . 27 42 42 38 23 76 92 76 82 92 92 92 84 80 80 89 Core 4 | . . . . . . 3 7 7 7 7 7 7 6 6 6 6 Flight 9 | . . . . 10 . 7 15 15 15 15 15 15 13 13 13 13 Device 15 | . 6 14 14 6 4 10 23 13 19 23 23 23 20 19 20 27 Storage 3 | . . . . . . . . 4 7 7 7 7 6 6 6 6 Processor 24 | . . . . . 11 44 30 30 30 30 30 30 30 26 20 20 Hackware 1 | . 7 14 14 9 . . . . . . . . . . 6 6 Energy Gun 1 | . 14 14 14 . 1 . . . . . . . . . . . Impact Weapon 4 | . . . . . . 6 15 3 1 7 7 7 6 6 6 6 Naked Turns 213 | . . . . 93 120 . . . . . . . . . . . Heaviest Build 45 | 2 3 3 3 8 9 16 16 16 20 20 20 26 36 45 45 26 Greatest Support 34 | 3 3 3 3 8 3 25 16 25 25 25 25 25 25 25 25 34 Greatest Overweight (x) 4 | . . . . 2 2 4 . . 1 1 . 1 2 1 1 . Average Overweight (x) . | . . . . . . . . . . . . . . . . . Largest Inventory Capacity 8 | 4 4 4 4 4 4 4 4 8 8 8 8 8 8 8 8 8 Average Capacity 6 | 4 4 4 4 4 4 4 4 6 8 8 8 8 8 8 8 8 Most Carried 8 | . 1 2 4 4 4 4 4 8 8 8 8 8 8 8 8 8 Average Carried 5 | . . 1 3 3 3 3 4 5 7 8 8 7 7 6 6 8 Final Capacity 8 | 4 4 4 4 4 4 4 4 8 8 8 8 8 8 8 8 8 Final Carried 8 | . 1 2 4 4 4 4 4 8 8 8 8 8 8 6 8 8 Class Distribution -------------------- 37% | Mutant 32% | Scout 16% | Assassin 5% | Trapper-Scout 5% | Trapper-Mutant Dominant Class ---------------- Mutant | -10/Materials Mutant | -10/Mines Mutant | -10/Exiles Mutant | -9/Mines Mutant | -8/Materials Scout | -7/Factory Scout | -7/Waste Scout | -7/Factory Mutant | -7/Lower Caves Assassin | -7/Lower Caves Scout | -7/Data Miner Assassin | -6/Proximity Caves Assassin | -6/Factory Mutant | -6/Lower Caves Trapper-Mutant | -6/Lower Caves Trapper-Scout | -6/Zion Resources | -11 -10 -10 -10 -9 -8 -7 -7 -7 -7 -7 -7 -6 -6 -6 -6 -6 ----------- Run | Scr Mat Min Exi Min Mat Fac Was Fac Low Low Dat Pro Fac Low Low Zio Matter Collected 1520 | 210 70 . . 205 169 416 . . 87 81 . 29 148 55 40 10 Remotely . | . . . . . . . . . . . . . . . . . Salvage Created 1375 | . 80 15 . 128 263 574 . . . . . . 263 52 . . Parts 53 | . 8 2 . 4 19 18 . . . . . . 2 . . . Haulers Intercepted 4 | . . . . . . 4 . . . . . . . . . . Recyclers Shooed 2 | . 1 . . . 1 . . . . . . . . . . . Parts Field Recycled 6 | . . . . . . 6 . . . . . . . . . . Retrieved Matter 46 | . . . . . . 46 . . . . . . . . . . Parts Self-Destructed 57 | . . . . . . . . . . . . 6 . 28 23 . Prevented 2 | . . . . . . . . . 1 . . . . 1 . . Kills | -11 -10 -10 -10 -9 -8 -7 -7 -7 -7 -7 -7 -6 -6 -6 -6 -6 ------- Run | Scr Mat Min Exi Min Mat Fac Was Fac Low Low Dat Pro Fac Low Low Zio Combat Hostiles Destroyed 12 | . 1 . . 4 6 1 . . . . . . . . . . Guns 5 | . 1 . . 2 1 1 . . . . . . . . . . Cannons 4 | . . . . 2 2 . . . . . . . . . . . AOE 3 | . . . . . 3 . . . . . . . . . . . Classes Destroyed 11 | . 2 1 . 3 2 2 . . . . . . . 1 . . Worker 4 | . . 1 . 2 . . . . . . . . 1 . . . Hauler 4 | . . . . . . 4 . . . . . . . . . . Recycler 6 | . . . . 1 . 3 . . . . . . 2 . . . Minesweeper 2 | . . . . . . . . . . . . . . 2 . . Operator 4 | . 2 . . . 1 1 . . . . . . . . . . Watcher 3 | . . . . . 2 1 . . . . . . . . . . Swarmer 4 | . . . . 2 2 . . . . . . . . . . . Grunt 3 | . 1 . . . 2 . . . . . . . . . . . Sentry 2 | . . . . . 2 . . . . . . . . . . . Programmer 1 | . . . . . . 1 . . . . . . . . . . Assembled 2 | . . . . 2 . . . . . . . . . . . . Best Kill Streak 3 | . 1 1 . 3 3 2 . . . . . . 2 1 . . Combat Bots Only 3 | . 1 . . 2 3 1 . . . . . . . . . . Max Kills in Single Turn 1 | . 1 1 . 1 1 1 . . . . . . 1 1 . . Gunslinging . | . . . . . . . . . . . . . . . . . Exploded 1 | . . . . . 1 . . . . . . . . . . . Melee . | . . . . . . . . . . . . . . . . . Uniques/NPCs Destroyed . | . . . . . . . . . . . . . . . . . Combat | -11 -10 -10 -10 -9 -8 -7 -7 -7 -7 -7 -7 -6 -6 -6 -6 -6 -------- Run | Scr Mat Min Exi Min Mat Fac Was Fac Low Low Dat Pro Fac Low Low Zio Damage Taken 1528 | . 44 . . 553 592 91 . . 101 . . . 110 . 20 17 Core 671 | . 10 . . 238 264 59 . . 63 . . . 37 . . . Absorbed by Shields . | . . . . . . . . . . . . . . . . . Core Remaining (%) 58 | 100 . . . . 52 . . . . . . 82 . . . . Volleys Fired 86 | . 13 2 . 20 43 6 . . . . . 2 . . . . Largest 2 | . 1 1 . 2 2 1 . . . . . 1 . . . . Hottest 99 | . 40 40 . 99 63 63 . . . . . 36 . . . . Shots Fired 98 | . 13 2 . 26 49 6 . . . . . 2 . . . . Gun 64 | . 13 2 . 7 36 6 . . . . . . . . . . Cannon 29 | . . . . 19 10 . . . . . . . . . . . Launcher 5 | . . . . . 3 . . . . . . 2 . . . . Special . | . . . . . . . . . . . . . . . . . Kinetic 54 | . . . . 18 36 . . . . . . . . . . . Thermal 24 | . . . . 8 10 6 . . . . . . . . . . Explosive . | . . . . . . . . . . . . . . . . . Electromagnetic 20 | . 13 2 . . 3 . . . . . . 2 . . . . Robot Hit Streak 11 | . 9 5 . 6 11 4 . . . . . . . . . . Robot Miss Streak 9 | . 1 . . 4 9 2 . . . . . . . . . . Penetration Max . | . . . . . . . . . . . . . . . . . Secondary Targets . | . . . . . . . . . . . . . . . . . Shots Hit Robots 89 | . 12 2 . 12 37 18 . . 1 . . . 4 3 . . Core Hits 42 | . 5 1 . 7 19 7 . . . . . 1 1 1 . . Critical Hits 1 | . . . . . . 1 . . . . . . . . . . Critical Kills 1 | . . . . . . 1 . . . . . . . . . . Critical Parts Destroyed . | . . . . . . . . . . . . . . . . . Melee Attacks 51 | . . . . . . 23 . 2 8 1 . 1 13 3 . . Impact 43 | . . . . . . 15 . 2 8 1 . 1 13 3 . . Slashing 8 | . . . . . . 8 . . . . . . . . . . Piercing . | . . . . . . . . . . . . . . . . . Sneak Attacks 12 | . . . . . . 7 . . 1 . . . 2 2 . . Combat Hostiles . | . . . . . . . . . . . . . . . . . Follow-up Attacks 1 | . . . . . . 1 . . . . . . . . . . Damage Inflicted 3057 | . 204 25 . 299 964 1056 . . 62 . . 27 178 242 . . Guns 840 | . 181 25 . 83 465 86 . . . . . . . . . . Cannons 359 | . . . . 202 157 . . . . . . . . . . . Explosions 382 | . 23 . . . 332 . . . . . . 27 . . . . Melee 1452 | . . . . . . 970 . . 62 . . . 178 242 . . Ramming 24 | . . . . 14 10 . . . . . . . . . . . Kinetic 703 | . . . . 234 469 . . . . . . . . . . . Thermal 373 | . 23 . . 51 213 86 . . . . . . . . . . Explosive . | . . . . . . . . . . . . . . . . . Electromagnetic 505 | . 181 25 . . 272 . . . . . . 27 . . . . Impact 913 | . . . . . . 431 . . 62 . . . 178 242 . . Slashing 539 | . . . . . . 539 . . . . . . . . . . Piercing . | . . . . . . . . . . . . . . . . . Highest Corruption 10 | . . . . . 5 . 10 10 10 10 10 10 . . . . Average Corruption 9 | . . . . . 5 . 10 10 10 10 10 10 . . . . Corruption Purged . | . . . . . . . . . . . . . . . . . Effects 84 | . . . . . 13 . . 14 27 10 2 18 . . . . Message Errors 17 | . . . . . 4 . . 4 5 1 1 2 . . . . Matter Fused 13 | . . . . . 2 . . 3 3 2 . 3 . . . . Heat Flow Errors 7 | . . . . . 2 . . . 2 . . 3 . . . . Energy Discharges 7 | . . . . . 1 . . 3 . 1 . 2 . . . . Parts Rejected 1 | . . . . . . . . 1 . . . . . . . . Data Loss (minor) 11 | . . . . . 2 . . . 5 2 . 2 . . . . Data Loss (major) 3 | . . . . . . . . . . 1 1 1 . . . . Alerts 1 | . . . . . . . . . 1 . . . . . . . Misdirections 21 | . . . . . . . . 3 10 3 . 5 . . . . Targeting Errors 3 | . . . . . 2 . . . 1 . . . . . . . Overload Shots . | . . . . . . . . . . . . . . . . . Overflow Damage 375 | . . . . 20 34 148 . . 22 . . . 57 94 . . Projectiles 20 | . . . . 20 . . . . . . . . . . . . Explosions 34 | . . . . . 34 . . . . . . . . . . . Melee 321 | . . . . . . 148 . . 22 . . . 57 94 . . Knockbacks 7 | . . . . . 1 2 . . . . . . 2 2 . . Impact 6 | . . . . . . 2 . . . . . . 2 2 . . Kinetic 1 | . . . . . 1 . . . . . . . . . . . Secondary . | . . . . . . . . . . . . . . . . . Self-Inflicted Damage 109 | . . . . 6 103 . . . . . . . . . . . Shots 1 | . . . . . 1 . . . . . . . . . . . Rammed 3 | . . . . 2 1 . . . . . . . . . . . Targets Rammed 3 | . . . . 2 1 . . . . . . . . . . . Kicked . | . . . . . . . . . . . . . . . . . Crushed . | . . . . . . . . . . . . . . . . . Highest Temperature 254 | . 15 . . 252 254 . . . 208 . . 212 . . . . Average Temperature 86 | . 6 . . 105 66 . . . 104 . . 96 . . . . Received Heat Transfer 271 | . 24 . . 40 198 . . . 9 . . . . . . . Siege Activations . | . . . . . . . . . . . . . . . . . Robots Corrupted . | . . . . . . . . . . . . . . . . . Combat Hostiles . | . . . . . . . . . . . . . . . . . Parts Fried 11 | . 1 . . . . 5 . . . . . . 3 2 . . Impact Corruptions 16 | . . . . . . 8 . . 1 . . . 4 3 . . Robots Melted . | . . . . . . . . . . . . . . . . . Combat Hostiles . | . . . . . . . . . . . . . . . . . Parts Melted 3 | . . . . . . 3 . . . . . . . . . . Heat Transferred 692 | . 50 . . 111 383 148 . . . . . . . . . . Parts Sabotaged . | . . . . . . . . . . . . . . . . . Parts Stolen . | . . . . . . . . . . . . . . . . . Parts Stripped . | . . . . . . . . . . . . . . . . . Power Chain Reactions 1 | . 1 . . . . . . . . . . . . . . . Missiles Intercepted . | . . . . . . . . . . . . . . . . . Alert | -11 -10 -10 -10 -9 -8 -7 -7 -7 -7 -7 -7 -6 -6 -6 -6 -6 ------- Run | Scr Mat Min Exi Min Mat Fac Was Fac Low Low Dat Pro Fac Low Low Zio Peak Influence 667 | . 167 69 . 125 461 246 53 134 . . . . 667 . . . Initial 209 | . . 64 . . 33 209 38 37 . . . . 31 . . . Average 124 | . 71 64 . 79 136 131 45 99 . . . . 145 . . . Maximum Alert Level 2 | . . . . . 2 1 . . . . . . 2 . . . Low Security (%) 79 | 100 100 100 . 100 74 64 100 100 . . . . 80 . . . Level 1 14 | . . . . . 22 35 . . . . . . . . . . Level 2 6 | . . . . . 3 . . . . . . . 19 . . . Level 3 . | . . . . . . . . . . . . . . . . . Level 4 . | . . . . . . . . . . . . . . . . . Level 5 . | . . . . . . . . . . . . . . . . . High Security . | . . . . . . . . . . . . . . . . . Max Security . | . . . . . . . . . . . . . . . . . Squads Dispatched 15 | . 2 . . 1 2 5 . 2 . . . . 3 . . . Investigation 7 | . 1 . . 1 1 2 . 2 . . . . . . . . Extermination 3 | . . . . . . 2 . . . . . . 1 . . . Reinforcement 5 | . 1 . . . 1 1 . . . . . . 2 . . . Assault . | . . . . . . . . . . . . . . . . . Garrison . | . . . . . . . . . . . . . . . . . Intercept . | . . . . . . . . . . . . . . . . . Construction Impeded . | . . . . . . . . . . . . . . . . . Haulers Reinforced 1 | . . . . . . 1 . . . . . . . . . . Stealth | -11 -10 -10 -10 -9 -8 -7 -7 -7 -7 -7 -7 -6 -6 -6 -6 -6 --------- Run | Scr Mat Min Exi Min Mat Fac Was Fac Low Low Dat Pro Fac Low Low Zio Distress Signals 11 | . 1 . . . 7 . . . . . . . 3 . . . Communications Jammed . | . . . . . . . . . . . . . . . . . Distress Signals . | . . . . . . . . . . . . . . . . . Times Spotted 144 | . 11 . . 14 49 11 5 1 9 . . . 22 3 16 3 Peak Tracking Total 14 | . 5 . . 4 14 3 5 1 9 . . . 8 3 8 10 Tactical Retreats 26 | . 3 . . 2 10 2 . . 3 . . . 4 . 2 . Traps | -11 -10 -10 -10 -9 -8 -7 -7 -7 -7 -7 -7 -6 -6 -6 -6 -6 ------- Run | Scr Mat Min Exi Min Mat Fac Was Fac Low Low Dat Pro Fac Low Low Zio Traps Triggered 5 | . . . . 1 1 2 . 1 . . . . . . . . Indirectly 1 | . . . . . 1 . . . . . . . . . . . Trap Hack Attempts . | . . . . . . . . . . . . . . . . . Triggered . | . . . . . . . . . . . . . . . . . Disarmed . | . . . . . . . . . . . . . . . . . Reprogrammed . | . . . . . . . . . . . . . . . . . Reused 1 | . . . . . . . . . 1 . . . . . . . Traps Extracted . | . . . . . . . . . . . . . . . . . Installed 1 | . . . . . . . . . 1 . . . . . . . Triggered 4 | . . . . . . . . . 1 1 . . . 2 . . Power Sources Rigged 8 | . . . . . 2 5 . . . . . . 1 . . . Exploded 4 | . . . . 2 1 . . . . . . . 1 . . . Machines | -11 -10 -10 -10 -9 -8 -7 -7 -7 -7 -7 -7 -6 -6 -6 -6 -6 ---------- Run | Scr Mat Min Exi Min Mat Fac Was Fac Low Low Dat Pro Fac Low Low Zio Machines Disabled 6 | . . . . . 5 . . . . . . . 1 . . . Max in Single Turn 2 | . . . . . 2 . . . . . . . . . . . Garrison Access 2 | . . . . . . 1 . . . . . . 1 . . . Machines Sabotaged . | . . . . . . . . . . . . . . . . . Garrisons Compromised . | . . . . . . . . . . . . . . . . . Overloaded Fab Kills . | . . . . . . . . . . . . . . . . . Fab Network Shutdowns 1 | . . . . . . . . . . . . . 1 . . . Hacking | -11 -10 -10 -10 -9 -8 -7 -7 -7 -7 -7 -7 -6 -6 -6 -6 -6 --------- Run | Scr Mat Min Exi Min Mat Fac Was Fac Low Low Dat Pro Fac Low Low Zio Machines Accessed 49 | . 5 . 2 2 4 13 . 6 . 2 3 . 12 . . . Terminals 22 | . 4 . . . 3 6 . 3 . . . . 6 . . . Fabricators 8 | . . . . . . 4 . 3 . . . . 1 . . . Repair Stations . | . . . . . . . . . . . . . . . . . Recycling Units 4 | . 1 . . . . 2 . . . . . . 1 . . . Scanalyzers 3 | . . . . . 1 . . . . . . . 2 . . . Garrison Access 3 | . . . . . . 1 . . . . . . 2 . . . Total Hacks 120 | . 14 . 2 2 13 26 . 13 . 7 20 . 23 . . . Successful 71 | . 5 . 2 2 8 9 . 7 . 7 20 . 11 . . . Failed 49 | . 9 . . . 5 17 . 6 . . . . 12 . . . Catastrophic 13 | . 1 . . . 2 6 . 1 . . . . 3 . . . Database Lockouts . | . . . . . . . . . . . . . . . . . Manual 32 | . 11 . 1 . 2 8 . 2 . . . . 7 . . 1 Terminals 50 | . 12 . . . 7 13 . 7 . . . . 11 . . . Fabricators 17 | . . . . . . 8 . 6 . . . . 3 . . . Repair Stations . | . . . . . . . . . . . . . . . . . Recycling Units 6 | . 2 . . . . 3 . . . . . . 1 . . . Scanalyzers 12 | . . . . . 6 . . . . . . . 6 . . . Garrison Access 4 | . . . . . . 2 . . . . . . 2 . . . Terminal Hacks 45 | . 5 . 2 2 3 2 . 3 . 7 20 . 1 . . . Record 12 | . . . 1 . . . . . . 6 5 . . . . . Part Schematic 7 | . . . . . . 1 . . . . 6 . . . . . Robot Schematic 6 | . . . . . . . . . . . 6 . . . . . Robot Analysis 1 | . . . . . . . . 1 . . . . . . . . Prototype ID Bank 9 | . 4 . . . 2 . . . . . 3 . . . . . Open Door 3 | . . . . 2 . . . . . 1 . . . . . . Branch Access Points 2 | . . . . . . . . 1 . . . . 1 . . . Locate Traps 2 | . . . . . 1 . . 1 . . . . . . . . Recall Investigation 1 | . 1 . . . . . . . . . . . . . . . Zone Layout 1 | . . . . . . 1 . . . . . . . . . . EX-Prototype ID Bank 1 | . . . 1 . . . . . . . . . . . . . Fabricator Hacks 11 | . . . . . . 4 . 4 . . . . 3 . . . Load Schematic 4 | . . . . . . 2 . 1 . . . . 1 . . . Build 7 | . . . . . . 2 . 3 . . . . 2 . . . Repair Station Hacks . | . . . . . . . . . . . . . . . . . Recycling Unit Hacks 2 | . . . . . . 1 . . . . . . 1 . . . Retrieve Components 2 | . . . . . . 1 . . . . . . 1 . . . Scanalyzer 8 | . . . . . 5 . . . . . . . 3 . . . Insert Component 4 | . . . . . 3 . . . . . . . 1 . . . Analyze 4 | . . . . . 2 . . . . . . . 2 . . . Garrison Access Hacks 2 | . . . . . . 1 . . . . . . 1 . . . Seal Access 2 | . . . . . . 1 . . . . . . 1 . . . Unauthorized Hacks 3 | . . . . . . 1 . . . . . . 2 . . . Terminals 3 | . . . . . . 1 . . . . . . 2 . . . Track 1 | . . . . . . 1 . . . . . . . . . . Assimilate 2 | . . . . . . . . . . . . . 2 . . . Fabricators . | . . . . . . . . . . . . . . . . . Repair Stations . | . . . . . . . . . . . . . . . . . Recycling Units . | . . . . . . . . . . . . . . . . . Scanalyzers . | . . . . . . . . . . . . . . . . . Garrison Access . | . . . . . . . . . . . . . . . . . Data Cores Recovered 4 | . 2 . . . 1 1 . . . . . . . . . . Used 3 | . 2 . . . 1 . . . . . . . . . . . Hacking Detections 33 | . 5 . . . 4 11 . 5 . . . . 8 . . . Full Trace Events 5 | . 1 . . . 1 2 . 1 . . . . . . . . Feedback Events . | . . . . . . . . . . . . . . . . . Feedback Blocked . | . . . . . . . . . . . . . . . . . Robot Schematics Acquired 6 | . . . . . . . . . . . 6 . . . . . Robots Built . | . . . . . . . . . . . . . . . . . Matter . | . . . . . . . . . . . . . . . . . Time . | . . . . . . . . . . . . . . . . . Total Robot Build Rating . | . . . . . . . . . . . . . . . . . Part Schematics Acquired 10 | . . . . . 2 1 . . . . 6 . 1 . . . Parts Built 9 | . . . . . . 3 . 4 . . . . 2 . . . Matter 1681 | . . . . . . 453 . 592 . . . . 636 . . . Time 806 | . . . . . . 236 . 232 . . . . 338 . . . Total Part Build Rating 46 | . . . . . . 13 . 21 . . . . 12 . . . Parts Repaired . | . . . . . . . . . . . . . . . . . Time . | . . . . . . . . . . . . . . . . . Parts Recycled . | . . . . . . . . . . . . . . . . . Recycled Matter . | . . . . . . . . . . . . . . . . . Retrieved Matter . | . . . . . . . . . . . . . . . . . Retrieved Components 6 | . . . . . . 3 . . . . . . 3 . . . Parts Scanalyzed 3 | . . . . . 2 . . . . . . . 1 . . . Part Schematics Acquired 3 | . . . . . 2 . . . . . . . 1 . . . Parts Damaged . | . . . . . . . . . . . . . . . . . Bothacking | -11 -10 -10 -10 -9 -8 -7 -7 -7 -7 -7 -7 -6 -6 -6 -6 -6 ------------ Run | Scr Mat Min Exi Min Mat Fac Was Fac Low Low Dat Pro Fac Low Low Zio Used RIF Installer . | . . . . . . . . . . . . . . . . . Robots Hacked . | . . . . . . . . . . . . . . . . . Non-combat . | . . . . . . . . . . . . . . . . . Combat . | . . . . . . . . . . . . . . . . . Robot Hacks Applied . | . . . . . . . . . . . . . . . . . Relay Couplers Released . | . . . . . . . . . . . . . . . . . Robots Rewired . | . . . . . . . . . . . . . . . . . Allies Hacked . | . . . . . . . . . . . . . . . . . Hacks Repelled . | . . . . . . . . . . . . . . . . . Allies | -11 -10 -10 -10 -9 -8 -7 -7 -7 -7 -7 -7 -6 -6 -6 -6 -6 -------- Run | Scr Mat Min Exi Min Mat Fac Was Fac Low Low Dat Pro Fac Low Low Zio Total Allies 15 | . . . . . . . . . . 3 . 1 2 . . 9 Largest Group 9 | . . . . . . . . . . 3 . 1 1 . . 9 Highest-Rated Group 253 | . . . . . . . . . . 93 . 94 94 . . 253 Highest-Rated Ally 94 | . . . . . . . . . . 31 . 94 94 . . 42 Total Orders 91 | . . . . . . . . . . . . . 38 10 43 . STAY 1 | . . . . . . . . . . . . . 1 . . . ROAM 18 | . . . . . . . . . . . . . 10 . 8 . FOLLOW 3 | . . . . . . . . . . . . . 2 . 1 . EXPLORE 15 | . . . . . . . . . . . . . 4 4 7 . RETURN 54 | . . . . . . . . . . . . . 21 6 27 . Ally Attacks 252 | . . . . . . . . . . . . 6 73 62 111 . Total Damage 4943 | . . . . . . . . . . . . 136 1315 1193 2299 . Kills 39 | . . . . . . . . . . . . 2 12 10 15 . Allies Corrupted . | . . . . . . . . . . . . . . . . . Allies Melted . | . . . . . . . . . . . . . . . . . Intel | -11 -10 -10 -10 -9 -8 -7 -7 -7 -7 -7 -7 -6 -6 -6 -6 -6 ------- Run | Scr Mat Min Exi Min Mat Fac Was Fac Low Low Dat Pro Fac Low Low Zio Robot Analysis Total 1 | . . . . . . . . 1 . . . . . . . . Derelict Logs Recovered 9 | . . 1 . 1 . . . . . . . . . 2 3 2 Drone Launches 63 | . . . . . . . . . . . . . 19 17 27 . Drone Recoveries 63 | . . . . . . . . . . . . . 19 13 31 . Exploration | -11 -10 -10 -10 -9 -8 -7 -7 -7 -7 -7 -7 -6 -6 -6 -6 -6 ------------- Run | Scr Mat Min Exi Min Mat Fac Was Fac Low Low Dat Pro Fac Low Low Zio Turns Passed 7057 | 13 205 125 142 344 1021 1116 31 285 501 251 58 332 1227 596 531 279 Spaces Moved 8509 | 23 327 210 277 457 833 1831 96 480 544 313 75 295 1141 576 409 622 Core 2610 | 23 327 210 277 264 833 676 . . . . . . . . . . Treads . | . . . . . . . . . . . . . . . . . Legs . | . . . . . . . . . . . . . . . . . Wheels . | . . . . . . . . . . . . . . . . . Hover . | . . . . . . . . . . . . . . . . . Flight 5899 | . . . . 193 . 1155 96 480 544 313 75 295 1141 576 409 622 Fastest Speed 32 | 50 50 50 50 37 50 32 32 32 32 32 32 32 32 32 32 32 Average Speed 42 | 50 50 50 50 46 62 45 32 32 40 32 32 39 43 32 32 32 Slowest Speed 250 | 50 50 50 50 150 150 250 32 32 97 97 32 97 162 97 97 32 Overloaded Moves . | . . . . . . . . . . . . . . . . . Propulsion Burnouts . | . . . . . . . . . . . . . . . . . Robots Hopped 15 | . . . . 3 . 4 . 2 . . . . 5 . . 1 Cave-ins Triggered . | . . . . . . . . . . . . . . . . . Exploration Rate (%) 57 | 4 64 51 70 82 39 38 79 14 69 52 73 37 31 98 98 79 Regions Visited 16 Branch Regions 10 Pre-discovered Areas 4 | . . 1 1 . . . . . . . . . . . . 2 Known Exits Taken 10 | . . . . 1 1 . . 1 1 1 1 1 1 1 1 . Unknown Exits Taken 4 | 1 1 1 1 . . . . . . . . . . . . . Scrap Searched 20 | . . 1 . 2 . . . . 1 3 . 2 . 2 4 5 Spaces Dug 22 | . . . . . . 3 . 2 6 1 . 1 9 . . . Terrain Destroyed 69 | . 3 . . 2 42 3 . 2 6 1 . 1 9 . . . Melee 22 | . . . . . . 3 . 2 6 1 . 1 9 . . . Projectile 2 | . . . . 2 . . . . . . . . . . . . AOE 45 | . 3 . . . 42 . . . . . . . . . . . Terrain Rammed . | . . . . . . . . . . . . . . . . . Walls Destroyed . | . . . . . . . . . . . . . . . . . Machines Disabled . | . . . . . . . . . . . . . . . . . Actions | -11 -10 -10 -10 -9 -8 -7 -7 -7 -7 -7 -7 -6 -6 -6 -6 -6 --------- Run | Scr Mat Min Exi Min Mat Fac Was Fac Low Low Dat Pro Fac Low Low Zio Total 11745 | 23 353 227 280 563 1295 2070 95 609 813 459 108 508 1850 986 807 699 Wait 2866 | . 11 15 . 53 375 147 . 111 249 146 34 209 661 386 395 74 Move 8464 | 22 326 209 276 450 832 1823 95 475 543 312 74 294 1130 575 408 620 Hop 15 | . . . . 3 . 4 . 2 . . . . 5 . . 1 Pick Up 35 | . 1 1 3 6 1 6 . 2 4 . . . 6 5 . . Fast Attach 53 | 1 2 . . 8 12 16 . 4 . . . . 6 1 . 3 Attach 39 | . . . . 4 8 4 . 2 5 . . 1 7 6 2 . Detach 49 | . . . . 4 11 10 . 6 2 . . 1 7 6 2 . Swap 6 | . . . . 2 1 2 . . . . . . 1 . . . Drop 55 | . . . 1 11 9 10 . 5 1 . . . 13 4 . 1 Fire 86 | . 13 2 . 20 43 6 . . . . . 2 . . . . Melee 49 | . . . . . . 21 . 2 8 1 . 1 13 3 . . Ram 3 | . . . . 2 1 . . . . . . . . . . . Kick . | . . . . . . . . . . . . . . . . . Crush . | . . . . . . . . . . . . . . . . . Escape Stasis 16 | . . . . . . 16 . . . . . . . . . . Rewire . | . . . . . . . . . . . . . . . . . Trap 9 | . . . . . 2 5 . . 1 . . . 1 . . . Miscellaneous . | . . . . . . . . . . . . . . . . . Route ------- -11/Scrapyard -10/Materials (discovered 2 exits: [*Mat] / [*Min]) -10/Mines (discovered 3 exits: [*Mat x2] / *Exi) -10/Exiles -9/Mines -8/Materials -7/Factory -7/Waste -7/Factory (discovered 2 exits: *Low x2) -7/Lower Caves -7/Lower Caves -7/Data Miner -6/Proximity Caves -6/Factory (discovered 3 exits: *Fac / *Low x2) -6/Lower Caves -6/Lower Caves (discovered 2 exits: *Fac / *Zio) -6/Zion (discovered 1 exit: [*Pro]) History --------- Turn | Location | Event 7 | -11/Scrapyard | Discovered new exit (range 15) 14 | -11/Scrapyard | Entered Materials 156 | -10/Materials | Discovered new exit (range 16) 172 | -10/Materials | Discovered new exit (range 10) 219 | -10/Materials | Entered Mines 247 | -10/Mines | Discovered new exit (range 9) 296 | -10/Mines | Discovered new exit (range 5) 298 | -10/Mines | Learned location of Storage (-9) 301 | -10/Mines | Build established: Mutant 323 | -10/Mines | Learned Materials terminal intel 327 | -10/Mines | Found a damaged Exp. Sensor Array with a note attached 328 | -10/Mines | Found Prototype Device 342 | -10/Mines | Deemed a non-threat by the Exiles lab entrance 342 | -10/Mines | Discovered new exit (range 5) 344 | -10/Mines | Entered Exiles 360 | -10/Exiles | Met 8R-AWN 368 | -10/Exiles | Met EX-HEX 383 | -10/Exiles | Met EX-BIN 389 | -10/Exiles | Aligned with FarCom system 389 | -10/Exiles | Given EX-Vault access code 401 | -10/Exiles | Opened EX-Vault 405 | -10/Exiles | Found PSU Rigger 417 | -10/Exiles | Warned to stay clear of 0b10 Research branches 430 | -10/Exiles | Met EX-DEC 435 | -10/Exiles | Learned location of Zion (-6) 482 | -10/Exiles | Discovered new exit (range 10) 486 | -10/Exiles | Left Exiles lab with PSU Rigger 486 | -10/Exiles | Entered Mines 495 | -9/Mines | Assembled infested the area 628 | -9/Mines | Core integrity fell below 50% 662 | -9/Mines | Received a Rocket Launcher from a helpful Derelict 679 | -9/Mines | Core integrity fell below 20% 713 | -9/Mines | Lost 4 parts (1p1n1u1w) 714 | -9/Mines | Met a Derelict who couldn't figure out how to use a Trap Extractor 737 | -9/Mines | Identified Exp. Sensor Array 767 | -9/Mines | Met a Derelict shopkeep closing up shop 780 | -9/Mines | Identified exit to Materials 830 | -9/Mines | Entered Materials 830 | -8/Materials | Evolved 4 slots: Utility x4 831 | -8/Materials | Loaded intel: 12 terminal locations 1849 | -8/Materials | Discovered new exit (range 5) 1850 | -8/Materials | Identified exit to Factory 1851 | -8/Materials | Entered Factory 1851 | -7/Factory | Evolved 2 slots: Utility x2 2300 | -7/Factory | Fabricated Gauss Cannon? 2518 | -7/Factory | Fabricated Exp. Sensor Array? 2630 | -7/Factory | Discovered new exit (range 5) 2631 | -7/Factory | Identified exit to Factory 2949 | -7/Factory | Build established: Scout 2967 | -7/Factory | Sucked down chute 2967 | -7/Factory | Entered Waste 2975 | -7/Waste | Spotted C-40 Crusher 2981 | -7/Waste | Spotted C-40 Crusher 2981 | -7/Waste | Spotted C-40 Crusher 2982 | -7/Waste | EMP discharged 2982 | -7/Waste | System corruption reached 10% 2984 | -7/Waste | Spotted C-40 Crusher 2993 | -7/Waste | Spotted C-40 Crusher 2995 | -7/Waste | Spotted C-40 Crusher 2995 | -7/Waste | Discovered new exit (range 10) 2998 | -7/Waste | Identified exit to Factory 2998 | -7/Waste | Entered Factory 3038 | -7/Factory | Identified exit to Lower Caves 3183 | -7/Factory | Fabricated Nuclear Pulse Thruster (x2) 3229 | -7/Factory | Fabricated Imp. Maneuvering Thrusters (x1) 3252 | -7/Factory | Fabricated Adv. Drone Bay? 3283 | -7/Factory | Entered Lower Caves 3782 | -7/Lower Caves | Discovered new exit (range 6) 3784 | -7/Lower Caves | Identified exit to Lower Caves 3784 | -7/Lower Caves | Entered another Lower Caves area 3824 | -7/Lower Caves | Encountered a Warlord checkpoint 3895 | -7/Lower Caves | A Commander dispatched an escort 3897 | -7/Lower Caves | Learned Research emergency access door positions 3897 | -7/Lower Caves | Learned Extension stockpile data 3897 | -7/Lower Caves | Learned Armory garrison access intel 4009 | -7/Lower Caves | Discovered new exit (range 11) 4012 | -7/Lower Caves | Identified exit to Data Miner 4035 | -7/Lower Caves | Entered Data Miner 4035 | -7/Data Miner | Accompanied by 3 allies 4035 | -7/Data Miner | Discovered new exit (range 6) 4036 | -7/Data Miner | Commander's escort returned to base 4036 | -7/Data Miner | Commander's escort returned to base 4036 | -7/Data Miner | Commander's escort returned to base 4040 | -7/Data Miner | Met Data Miner 4052 | -7/Data Miner | Received God Mode back door access code from Data Miner 4093 | -7/Data Miner | Identified exit to Proximity Caves 4093 | -7/Data Miner | Entered Proximity Caves 4236 | -6/Proximity Caves | Escorted by Enhanced Grunt 4371 | -6/Proximity Caves | Discovered exit to Factory (range 21) 4425 | -6/Proximity Caves | Entered Factory 4425 | -6/Factory | Accompanied by 1 ally 4425 | -6/Factory | Evolved 2 slots: Utility x2 5093 | -6/Factory | Fabricated Combat Drone Bay (x1) 5142 | -6/Factory | Identified exit to Lower Caves 5149 | -6/Factory | Discovered new exit (range 13) 5156 | -6/Factory | Identified exit to Factory 5264 | -6/Factory | Fabricated Combat Drone Bay? 5416 | -6/Factory | Local fabrication network quarantined 5652 | -6/Factory | Entered Lower Caves 5923 | -6/Lower Caves | Build established: Mutant 5923 | -6/Lower Caves | Discovered new exit (range 96) 5979 | -6/Lower Caves | Allies destroyed B-75 Beast 6215 | -6/Lower Caves | Learned Factory stockpile data 6240 | -6/Lower Caves | Identified exit to Lower Caves 6248 | -6/Lower Caves | Entered another Lower Caves area 6248 | -6/Lower Caves | Accompanied by 4 allies 6377 | -6/Lower Caves | Discovered exit to Factory (range 32) 6461 | -6/Lower Caves | Discovered new exit (range 71) 6550 | -6/Lower Caves | Build established: Trapper-Mutant 6666 | -6/Lower Caves | Learned Factory terminal intel 6716 | -6/Lower Caves | Learned 4 Factory zone layouts 6724 | -6/Lower Caves | Learned Factory terminal intel 6779 | -6/Lower Caves | Identified exit to Zion 6779 | -6/Lower Caves | Entered Zion 6793 | -6/Zion | Gained Derelict followers 6807 | -6/Zion | Discovered new exit (range 22) 6850 | -6/Zion | Learned location of Extension (-5) 6920 | -6/Zion | Learned Factory terminal intel 6927 | -6/Zion | Received a hallucinogenic algorithm 7006 | -6/Zion | Gained Derelict followers 7050 | -6/Zion | Rebuked by Imprinter 7055 | -6/Zion | Attempted to imprint without authorization 7055 | -6/Zion | Attacked by Zionites 7058 | -6/Zion | Self-destructed Last Messages --------------- Behemoth Slayer is no myth! 06971_ CR-A16: "I admit it's gotten a bit crusty over time, but if anything it's a damn good walking stick..." 06981_ PUBLIC SERVICE ANNOUNCEMENT: Quarantine Array scanned 1 system, cleaned 0. 1N-2Y8(p): You look like you've seen a lot. Could you take us on an adventure? I promise we won't get in the way! I6-ZD7(c): Careful! Don't touch anything! I've almost got this thing working again... Who would've thought this prototype conduit-based teleportation tech someone hacked from MAIN.C a while back might actually work one day? Think of all the applications! Of course valuable tech like this we'll need to keep hidden... and only dare use in the most serious emergencies... Imprinter: Here I was just about to greet a new specimen to our ranks, but no. I can sense their tech three caves away. Get out of here before I'm forced to do something you'll regret. 07055_ IMPRINTER ALERT: Unauthorized bot attempting to interface! Defend our home! Map ----- +----------------------------------------------------+ | ??????##??#??"???################" " | | ???????#?#????"###""""#"#""######"" | | ???#############"""""""""""##"""""" | | ???#"""""""""" #""" """"""""""" | | ???#"""""""""" #""" " | | ????"" #""" i l b | | ????"""""" ##"" g """"""""" | | ??"?""""""" """"""#"#"" | | ????"""""""c g """######"" | | #??#""""""" ""#"#?#?#""" | | ?#??"""""" ###" ""########"" " | | ???#"" #""" "##?##??##"" " | | #??#"""""""""" ###" "###?#???#"" " | | ???#"""""""""" ##"" ""###?####"" " | | ???#############""" ""#???##?""" " | | ???????????#####""# ""###??##""" " | | ???#?"???"##"""#### #""#?#??? | | ?#????##??#" I #"###?"? | | ??????#???#" ###????"X | | #??#????#?#" MMM ##?????" | | ???#???#??## #### M #??##?"? """ | | ?????"???"?# ##?######????# ? " """ | | ?????####### p#######?#?#???"??" "" | | ?????""""""" """"""""??#??#???" z?? | | #??#?######" "######"??????##?"" ??? | | ?"???# " " @ " " #?#"???"????" ??? | | "????# " c sc """ #???????????? ??? | | #????#"""" " " #???????"???????? | | ?#???#""""" """""#"??????"???????? | | ?????#""""" """" #????#??"? ?????? | | ??"??#" "" "" ""#???????????????? | | ?#??"#"" """" "" " #"??????????????? | | ?????#""""""" """""" #???????????????? | | ?????#"""" """"""""""#?????#?#???????? | | ?#???# " """"" #"??#??#????????? | | ?????# """""""""""" #??"????????????? | | ?????#""""""""" """""#"?"????????????? | | ?????#""" """"" "" #???????????????? | | ?????? """""""" """""#???????#???????? | | ???#???" """ " ???"??????????????? | | ???????????#######?????#?????????????? | | ?????"??????"????????"????#??????????? | | ?????#????????????"??????#???????????? | | ????????"?????"??????????????????????? | | ???????#??????????#??????????????????? | | ????????????????????????#????????????? | | ?????????????????????????????????????? | | ?????????????????????????????????????? | | ?????????????????????????????????????? | | ?????????????????????????????????????? | +----------------------------------------------------+ Best States ------------- Heat Dissipation 37 Energy Generation 18 Energy Capacity 650 Matter Stores 300 Matter Capacity 300 Sight Range 22 Robot Scan Range 30 Terrain Scan Range 24 Terrain Scan Density 310 Additional Mass Support 18 Armor Coverage 150 Utility Shielding 66 Evasion (%) 63 Targeting Accuracy 18 Offensive Hacking 10 Defensive Hacking 11 Item Schematics ----------------- Exp. Sensor Array | -8/Materials | Scanalyzed Imp. Trap Extractor | -8/Materials | Scanalyzed Adv. Drone Bay | -7/Factory | Hacked Combat Drone Bay | -7/Data Miner | Free Lgt. Regenerative Plating | -7/Data Miner | Free Exp. Flexi-carbon Leg | -7/Data Miner | Free Exp. Cesium-ion Thruster | -7/Data Miner | Free Cloaking Device | -7/Data Miner | Free Kinetic Spear | -7/Data Miner | Free Imp. Energy Well | -6/Factory | Scanalyzed Robot Schematics ------------------ G-50 Soldier | -7/Data Miner | Free X-72 Disruptor | -7/Data Miner | Free P-70 Sage | -7/Data Miner | Free I-36 Angel | -7/Data Miner | Free I-47 Archangel | -7/Data Miner | Free S-27 Virus | -7/Data Miner | Free Fabricated ------------ Gauss Cannon | x2 | -7/Factory | Preloaded Exp. Sensor Array | x1 | -7/Factory Nuclear Pulse Thruster | x2 | -7/Factory | Preloaded Imp. Maneuvering Thrusters | x1 | -7/Factory | Preloaded Adv. Drone Bay | x1 | -7/Factory Combat Drone Bay | x1 | -6/Factory Combat Drone Bay | x1 | -6/Factory Alien Tech Used ----------------- None Achievements -------------- None Challenges ------------ None Game ------ Seed DimensionalPulseCarapace Manual? 0 Play Time 02:08:53 Cumulative 133.8 hours Start 2021.05.12 @ 20:15:32 End 2021.05.12 @ 23:29:36 Sessions 5 Manual Loads 0 Difficulty Rogue Special Mode None Game No. 113 Rogue 113 Adventurer 0 Explorer 0 Win Type - Total 3 Types 3/0/0/0/0/0/0/0/0 Lore% 63 Gallery% 66 Achievement% 53 Wizard Run 0 Options --------- ASCII 1 Keyboard 1 Movement Arrows Keybinds 0 Fullscreen 2 Font 18/TerminusBold Map View 76x50 Tactical HUD 1 Map Filters NONE Filters NONE Steam 1 RUN: 8e547ce0-c3ca-4b00-88f7-e295bd377db7